Cogmind - Beta 14 @@@ ROGUE MODE // 2024.08.17 @ 22:43:45 Player: porkhorse Result: Self-destructed Performance ------------- Evolutions (1) 500 Regions Visited (3) 600 Robots Destroyed (22) 110 Value Destroyed (545) 545 Prototype IDs (4) 80 Alien Tech Used (0) 0 Bonus (0) 0 TOTAL SCORE: 1835 Bonus ------- None Cogmind --------- Core Integrity 380/400 Matter 212/300 Energy 160/160 System Corruption 1% Temperature Cool (0) Movement Hovering (52) Location -9/Materials Parts ------- > --- POWER (1) -------- Light Nuclear Core > --- PROPULSION (3) --- Improved Hover Unit Improved Hover Unit Improved Hover Unit > --- UTILITY (3) ------ Small Storage Unit Improved Terrain Scanner Propulsion Shielding > --- WEAPON (2) ------- Advanced Beam Cannon High-powered Shotgun > --- INVENTORY (8) ---- Ion Engine Improved Hover Unit High-capacity Matter Pod (200) Improved Targeting Computer Heavy Assault Rifle Heavy Assault Rifle Mini Grenade Launcher Ripper Peak State ------------ > --- POWER ------------ Light Nuclear Core > --- PROPULSION ------- Improved VTOL Module Improved VTOL Module Improved VTOL Module > --- UTILITY ---------- Small Storage Unit Improved Terrain Scanner Propulsion Shielding > --- WEAPON ----------- Advanced Beam Cannon High-powered Shotgun > --- INVENTORY -------- Ion Engine Improved Hover Unit High-capacity Matter Pod Improved Targeting Computer Heavy Assault Rifle Heavy Assault Rifle Mini Grenade Launcher Ripper [Rating: 27] Favorites ----------- Power Light Ion Engine Engine Light Ion Engine Power Core Light Nuclear Core Propulsion Improved Hover Unit Leg Aluminum Leg Hover Unit Improved Hover Unit Flight Unit Improved VTOL Module Utility Small Storage Unit Device Improved Terrain Scanner Storage Small Storage Unit Protection Propulsion Shielding Weapon Advanced Beam Cannon Energy Gun Small Laser Energy Cannon Advanced Beam Cannon Ballistic Gun Heavy Assault Rifle Ballistic Cannon Light Cannon Launcher Grenade Launcher Slashing Weapon Ripper Build | -11 -10 -10 -9 ------- Run | Yrd Mat Min Mat Slots Evolved 2 | . . . 2 Power . | . . . . Propulsion 1 | . . . 1 Utility 1 | . . . 1 Weapon . | . . . . Parts Attached 35 | 8 12 2 13 Power 3 | 1 1 1 . Engine 2 | 1 1 . . Core 1 | . . 1 . Reactor . | . . . . Propulsion 16 | 2 4 1 9 Treads . | . . . . Leg 2 | 2 . . . Wheel . | . . . . Hover 11 | . 4 1 6 Flight 3 | . . . 3 Utility 4 | 2 1 . 1 Device 2 | 1 . . 1 Storage 1 | 1 . . . Processor . | . . . . Hackware . | . . . . Protection 1 | . 1 . . Artifact . | . . . . Weapon 12 | 3 6 . 3 Energy Gun 1 | 1 . . . Energy Cannon 2 | . 2 . . Ballistic Gun 6 | 2 2 . 2 Ballistic Cannon 1 | . 1 . . Launcher 1 | . 1 . . Special Weapon . | . . . . Impact Weapon . | . . . . Slashing Weapon 1 | . . . 1 Piercing Weapon . | . . . . Special Melee Weapon . | . . . . Unidentified Prototypes 2 | . 1 . 1 Parts Lost 2 | . 1 1 . Power 1 | . . 1 . Propulsion . | . . . . Utility . | . . . . Weapon 1 | . 1 . . Highest Loss Streak 1 | . 1 1 . To Critical Strikes . | . . . . Average Slot Usage (%) 99 | . 99 99 100 Engine 10 | . 14 9 . Core 2 | . . 4 11 Leg 7 | . 11 . . Hover 21 | . 16 28 31 Device 5 | . 5 . 11 Storage 13 | . 14 14 11 Protection 9 | . 8 14 11 Energy Cannon 9 | . 7 14 11 Ballistic Gun 15 | . 17 14 9 Ballistic Cannon 1 | . 3 . . Peak Build Rating 27 | 9 13 15 27 Average Rating 12 | 5 11 13 20 On Entrance 9 | . 9 13 15 Naked Turns . | . . . . Heaviest Build 19 | 13 16 18 19 Greatest Support 21 | 20 20 14 21 Greatest Overweight (x) 3 | . 1 1 3 Average Overweight (x) . | . . . . Largest Inventory Capacity 8 | 8 8 8 8 Average Capacity 7 | 6 8 8 8 Most Carried 8 | 4 8 8 8 Average Carried 6 | 2 6 7 6 Final Capacity 8 | 8 8 8 8 Final Carried 8 | 3 8 8 8 Class Distribution -------------------- 100% | Mutant Dominant Class ---------------- Mutant | -10/Materials Mutant | -10/Mines Mutant | -9/Materials Resources | -11 -10 -10 -9 ----------- Run | Yrd Mat Min Mat Matter Collected 810 | 298 333 121 58 Remotely . | . . . . Salvage Created 760 | 119 360 123 158 Parts 55 | 6 25 10 14 Haulers Intercepted 1 | . 1 . . Recyclers Shooed . | . . . . Parts Field Recycled . | . . . . Retrieved Matter . | . . . . Parts Self-Destructed . | . . . . Prevented . | . . . . Kills | -11 -10 -10 -9 ------- Run | Yrd Mat Min Mat Combat Hostiles Destroyed 15 | . 9 3 3 Guns 6 | . 4 . 2 Cannons 6 | . 2 3 1 AOE 3 | . 3 . . Classes Destroyed 7 | 2 4 . 1 Tunneler 2 | 2 . . . Hauler 1 | . 1 . . Recycler 1 | 1 . . . Watcher 3 | . 2 . 1 Swarmer 3 | . 3 . . Grunt 11 | . 6 3 2 Sentry 1 | . . . 1 Best Kill Streak 3 | 3 3 2 2 Combat Bots Only 3 | . 3 2 1 Max Kills in Single Turn 3 | 1 3 1 1 Gunslinging . | . . . . Exploded 3 | . 3 . . Melee . | . . . . Uniques/NPCs Destroyed . | . . . . Combat | -11 -10 -10 -9 -------- Run | Yrd Mat Min Mat Hostile Shots Fired 46 | . 33 9 4 Missed 12 | . 8 1 3 Damage Taken 467 | . 302 118 47 Core 95 | . 49 26 20 Absorbed by Shields . | . . . . Redirected to Shielding 3 | . 3 . . Core Remaining (%) 85 | 100 . 70 . Volleys Fired 52 | 9 31 6 6 Largest 2 | 2 2 2 2 Hottest 91 | 40 91 91 91 Shots Fired 102 | 18 60 12 12 Gun 74 | 18 44 6 6 Cannon 26 | . 14 6 6 Launcher 2 | . 2 . . Special . | . . . . Kinetic 84 | 18 54 6 6 Thermal 16 | . 4 6 6 Explosive 2 | . 2 . . Electromagnetic . | . . . . Robot Hit Streak 6 | 6 5 5 3 Robot Miss Streak 3 | 2 3 1 2 Penetration Max . | . . . . Secondary Targets . | . . . . Shots Hit Robots 59 | 12 34 7 6 Core Hits 33 | 5 19 4 5 Critical Kills 1 | . 1 . . Critical Parts Destroyed . | . . . . Critical Strikes 3 | . 3 . . Destroy 1 | . 1 . . Blast 2 | . 2 . . Melee Attacks 8 | . . . 8 Impact . | . . . . Slashing 8 | . . . 8 Piercing . | . . . . Sneak Attacks . | . . . . Combat Hostiles . | . . . . Follow-up Attacks . | . . . . Damage Inflicted 895 | 109 524 148 114 Guns 446 | 109 247 32 58 Cannons 323 | . 170 109 44 Explosions 103 | . 103 . . Melee . | . . . . Ramming 23 | . 4 7 12 Kinetic 552 | 109 353 32 58 Thermal 217 | . 64 109 44 Explosive 103 | . 103 . . Electromagnetic . | . . . . Impact . | . . . . Slashing . | . . . . Piercing . | . . . . Highest Corruption 1 | . . . 1 Average Corruption 1 | . . . 1 Corruption Purged . | . . . . Corruption Blocked . | . . . . Overload Shots . | . . . . Overflow Damage . | . . . . Projectiles . | . . . . Explosions . | . . . . Melee . | . . . . Knockbacks 1 | . 1 . . Impact . | . . . . Kinetic 1 | . 1 . . Secondary . | . . . . Self-Inflicted Damage 39 | . 25 3 11 Shots 1 | . 1 . . Rammed 3 | . . 2 1 Targets Rammed 4 | . 1 2 1 Kicked 1 | . 1 . . Crushed . | . . . . Highest Temperature 226 | . 46 226 111 Average Temperature 50 | . 19 106 45 Received Heat Transfer 210 | . 126 84 . Siege Activations . | . . . . Robots Corrupted . | . . . . Combat Hostiles . | . . . . Parts Fried . | . . . . Impact Corruptions . | . . . . Robots Melted . | . . . . Combat Hostiles . | . . . . Parts Melted . | . . . . Heat Transferred 370 | . 111 185 74 Parts Sabotaged . | . . . . Parts Stolen . | . . . . Parts Stripped . | . . . . Power Chain Reactions . | . . . . Alert | -11 -10 -10 -9 ------- Run | Yrd Mat Min Mat Peak Influence 214 | 15 168 91 214 Initial 35 | . 9 31 35 Average 71 | 6 68 59 124 Maximum Alert Level 1 | . . . 1 Low Security (%) 95 | 100 100 100 71 Level 1 4 | . . . 28 Level 2 . | . . . . Level 3 . | . . . . Level 4 . | . . . . Level 5 . | . . . . High Security . | . . . . Max Security . | . . . . Squads Dispatched 4 | . 2 . 2 Investigation 3 | . 1 . 2 Extermination . | . . . . Reinforcement 1 | . 1 . . Assault . | . . . . Garrison . | . . . . Intercept . | . . . . Searches Triggered . | . . . . Construction Impeded . | . . . . Haulers Reinforced . | . . . . Active Scanning Responses . | . . . . Cargo Convoy Interrupts . | . . . . Stealth | -11 -10 -10 -9 --------- Run | Yrd Mat Min Mat Distress Signals 2 | . 1 . 1 Communications Jammed . | . . . . Distress Signals . | . . . . Times Spotted 23 | . 14 4 5 Peak Tracking Total 4 | . 4 2 2 Tactical Retreats 1 | . 1 . . Traps | -11 -10 -10 -9 ------- Run | Yrd Mat Min Mat Traps Triggered . | . . . . Indirectly . | . . . . Trap Hack Attempts . | . . . . Triggered . | . . . . Disarmed . | . . . . Reprogrammed . | . . . . Reused . | . . . . Traps Extracted . | . . . . Installed . | . . . . Triggered . | . . . . Machines | -11 -10 -10 -9 ---------- Run | Yrd Mat Min Mat Machines Disabled . | . . . . Max in Single Turn . | . . . . Machines Repaired . | . . . . Machines Dismantled . | . . . . Machines Sabotaged . | . . . . Overloaded Fab Kills . | . . . . Hacking | -11 -10 -10 -9 --------- Run | Yrd Mat Min Mat Machines Accessed 11 | . 7 . 4 Terminals 10 | . 6 . 4 Fabricators . | . . . . Repair Stations . | . . . . Recycling Units 1 | . 1 . . Scanalyzers . | . . . . Garrison Access . | . . . . Total Hacks 31 | . 24 . 7 Successful 10 | . 10 . . Failed 21 | . 14 . 7 Catastrophic 2 | . 1 . 1 Database Lockouts . | . . . . Manual 22 | . 14 . 8 Terminals 26 | . 19 . 7 Fabricators . | . . . . Repair Stations . | . . . . Recycling Units 5 | . 5 . . Scanalyzers . | . . . . Garrison Access . | . . . . Terminal Hacks 7 | . 7 . . Robot Analysis 2 | . 2 . . Prototype ID Bank 1 | . 1 . . Emergency Access Points 1 | . 1 . . Terminal Index 1 | . 1 . . Locate Traps 1 | . 1 . . Zone Layout 1 | . 1 . . Fabricator Hacks . | . . . . Repair Station Hacks . | . . . . Recycling Unit Hacks 1 | . 1 . . Report Inventory 1 | . 1 . . Scanalyzer . | . . . . Garrison Access Hacks . | . . . . Unauthorized Hacks 2 | . 2 . . Terminals . | . . . . Fabricators . | . . . . Repair Stations . | . . . . Recycling Units 2 | . 2 . . Monitor 1 | . 1 . . Mask 1 | . 1 . . Scanalyzers . | . . . . Garrison Access . | . . . . Data Cores Recovered . | . . . . Used . | . . . . Hacking Detections 11 | . 7 . 4 Full Trace Events 5 | . 2 . 3 Feedback Events . | . . . . Feedback Blocked . | . . . . Robot Schematics Acquired . | . . . . Robots Built . | . . . . Authchips . | . . . . Time . | . . . . Total Robot Build Rating . | . . . . Part Schematics Acquired . | . . . . Parts Built . | . . . . Authchips . | . . . . Time . | . . . . Total Part Build Rating . | . . . . Parts Repaired . | . . . . Time . | . . . . Parts Recycled . | . . . . Recycled Matter . | . . . . Retrieved Matter . | . . . . Retrieved Components . | . . . . Parts Scanalyzed . | . . . . Part Schematics Acquired . | . . . . Parts Damaged . | . . . . Bothacking | -11 -10 -10 -9 ------------ Run | Yrd Mat Min Mat Used RIF Installer . | . . . . Robots Hacked . | . . . . Non-combat . | . . . . Combat . | . . . . Robot Hacks Applied . | . . . . Relay Couplers Released . | . . . . Fabnet Peak Effective % . | . . . . Robots Rewired . | . . . . Allies Hacked . | . . . . Hacks Repelled . | . . . . Allies | -11 -10 -10 -9 -------- Run | Yrd Mat Min Mat Total Allies . | . . . . Largest Group . | . . . . Highest-Rated Group . | . . . . Highest-Rated Ally . | . . . . Total Orders . | . . . . Ally Attacks . | . . . . Total Damage . | . . . . Kills . | . . . . Allies Corrupted . | . . . . Allies Melted . | . . . . Intel | -11 -10 -10 -9 ------- Run | Yrd Mat Min Mat Robot Analysis Total 2 | . 2 . . Derelict Logs Recovered 1 | . . 1 . Drone Launches . | . . . . Drone Recoveries . | . . . . Exploration | -11 -10 -10 -9 ------------- Run | Yrd Mat Min Mat Turns Passed 1875 | 137 1109 334 295 Spaces Moved 1409 | 87 750 255 317 Core 9 | 9 . . . Treads . | . . . . Legs 348 | 78 270 . . Wheels . | . . . . Hover 1050 | . 480 255 315 Flight 2 | . . . 2 Fastest Speed 50 | 50 56 56 52 Average Speed 102 | 112 116 115 53 Slowest Speed 245 | 120 120 116 245 Overloaded Moves . | . . . . Propulsion Burnouts . | . . . . Robots Hopped . | . . . . Cave-ins Triggered . | . . . . Exploration Rate (%) 42 | 7 87 53 21 Regions Visited 3 Branch Regions 1 Pre-discovered Areas . | . . . . Known Exits Taken 1 | . . 1 . Unknown Exits Taken 2 | 1 1 . . Scrap Searched 1 | . . 1 . Spaces Dug 8 | . . . 8 Terrain Destroyed 18 | . 10 . 8 Melee 8 | . . . 8 Projectile . | . . . . AOE 10 | . 10 . . Terrain Rammed 1 | . . . 1 Walls Destroyed . | . . . . Machines Disabled . | . . . . Actions | -11 -10 -10 -9 --------- Run | Yrd Mat Min Mat Total 1734 | 108 931 281 414 Wait 197 | . 119 15 63 Move 1406 | 86 749 254 317 Hop . | . . . . Pick Up 18 | 5 10 1 2 Fast Attach 6 | 5 . 1 . Attach 5 | 2 1 . 2 Detach . | . . . . Swap 24 | 1 11 1 11 Drop 11 | . 7 1 3 Fire 52 | 9 31 6 6 Melee 8 | . . . 8 Ram 4 | . . 2 2 Kick 1 | . 1 . . Crush . | . . . . Escape Stasis . | . . . . Rewire 2 | . 2 . . Trap . | . . . . Miscellaneous . | . . . . Route ------- -11/Scrapyard -10/Materials (discovered 5 exits: *Mat x3 / [*Min x2]) -10/Mines (discovered 3 exits: *Mat x2 / [*Exi]) -9/Materials History --------- Turn | Location | Event 9 | -11/Scrapyard | Discovered new exit (range 15) 138 | -11/Scrapyard | Entered Materials 181 | -10/Materials | Discovered new exit (range 13) 255 | -10/Materials | Met 8R-AWN 316 | -10/Materials | Build established: Mutant 608 | -10/Materials | Discovered new exit (range 8) 714 | -10/Materials | Discovered new exit (range 14) 854 | -10/Materials | Discovered new exit (range 9) 1114 | -10/Materials | Discovered new exit (range 15) 1247 | -10/Materials | Entered Mines 1249 | -10/Mines | Followed 8R-AWN into the Mines 1377 | -10/Mines | Discovered new exit (range 5) 1435 | -10/Mines | A weapon hastily lodged in a ceiling crevice suddenly fell to the ground 1448 | -10/Mines | Identified exit to Materials 1455 | -10/Mines | Discovered exit to Materials (range 5) 1581 | -10/Mines | Entered Materials 1581 | -9/Materials | Evolved 2 slots: Propulsion x1, Utility x1 1876 | -9/Materials | Self-destructed Last Messages --------------- 01796_ Acquired 12 matter. 01803_ K-01 Serf cleans the Terminal. 01815_ K-01 Serf collects debris. 01817_ K-01 Serf cleans the Terminal. 01819_ K-01 Serf collects debris. 01820_ Dropped Grenade Launcher. 01824_ Acquired Mni. Grenade Launcher. 01841_ Acquired Prototype Flight Unit. 01841_ Identified Imp. VTOL Module. 01842_ Dropped Imp. Hover Unit. 01846_ Acquired Imp. VTOL Module. 01852_ Acquired Imp. Hover Unit. 01858_ Dropped Imp. Hover Unit. 01860_ Acquired Imp. Hover Unit. 01874_ Slammed into U-05 Engineer. 01874_ Destabilizing: System interference. 01874_ Adv. Beam Cannon temporarily disabled. 01874_ Imp. Terrain Scanner temporarily disabled. 01874_ Hpw. Shotgun temporarily disabled. Map ----- +----------------------------------------------------+ | ?????????????????????????????????????????????????? | | ?????????????????????????????????????????????????? | | ?????????????????????????????????????????????????? | | ?????????????????????????????????????????????????? | | ?????????????????????????????????????????????????? | | ?????????????????????????????????????????????????? | | ?????????????????????????????????????????????????? | | ?????????????????????????????????????????????????? | | ?????????????????????????????????????????????????? | | ?????????????????????????????????????????????????? | | ???????????????????????? ???????????????????????? | | ???????????????????????? ???????????????????????? | | ???????????????????????? ???????????????????????? | | ???????????????????????? ???#???????????????????? | | ???????????????????????? ???????????????????????? | | ???????????????????????? ???????????????????????? | | ???????????????????????? ???????#???????????????? | | ?????????????? ????????? #??????????????????????? | | ???????????????????? ??? #??????????????????????? | | ???????????????????????? #??????????????????????? | | ???????????????????????? #??????????????????????? | | ????????????????????????# #??????????????????????? | | ???????????????#????????#k#??????????????????????? | | ????????# ??????????????# #?????? ???????????????? | | ????????# ???????????#?# #?????? ???????????????? | | ?????????? ???????????#@#??????????#???????????? | | ???????????? ? ??#?????# ######?????????????????? | | ???###########/##########ku #??????????????????? | | ???# t k #?????#????????????? | | ???# ##???#???????????#?? | | ???# #????##????????????? | | ???# ########### # % #????#?????????????? | | ???# # ## ## ##########??????????? | | ???# # """ ##//[ ==## # #??????????? | | ???+ + """ ##//[[==## # """ #??????????? | | ???# # """ ##########m +] """ #??????????? | | ???# # #????????# # """ |#??????????? | | ???# # """ #?#????###k # #??????????? | | ???# # R" #????????# #= """ #??????????? | | ???# # """ ########## # """ #??????????? | | ???# # + # """ [#??????????? | | ??## #####/############# # #??????????? | | ???# #???# ##??#?#?????# ##########??#???????? | | ???# #??## #??????????## #??#?#????#?????????? | | ??## ##?## ##?#???#?#??# #?????#?????????????? | | ??# #??# #???????????# ########????????????? | | ### #??# #????#???#### # #?#??????#???? | | T #??# #??#???????#T # #????????????? | | ### #??# #?###?????### #[// #?#??????????? | | ??# % #??# ### #?????#?# %/!/= #??##????????? | +----------------------------------------------------+ Best States ------------- Heat Dissipation 28 Energy Generation 14 Energy Capacity 250 Matter Stores 300 Matter Capacity 300 Sight Range 16 Terrain Scan Range 16 Terrain Scan Density 10 Propulsion Shielding 33 Evasion (%) 55 Item Schematics ----------------- None Robot Schematics ------------------ None Fabricated ------------ Nothing Alien Tech Used ----------------- None Achievements -------------- None Challenges ------------ None Game ------ Seed ThrusterZioniteInitializer Manual? 0 Play Time 00:27:57 Cumulative 24.9 hours Start 2024.08.17 @ 01:14:12 End 2024.08.17 @ 22:43:45 Sessions 3 Manual Loads 0 Difficulty Rogue Special Mode None Game No. 27 Rogue 8 Adventurer 19 Explorer 0 Win Type - Total 0 Types 0/0/0/0/0/0/0/0/0 Lore% 7 Gallery% 21 Achievement% 17 Wizard Run 0 Options --------- Layout 1 ASCII 0 Keyboard 1 Movement Arrows Keybinds 0 Fullscreen 2 Font 24/Smallcaps Map View 50x35 Zoom Use 0% Tactical HUD 1 Map Filters NONE Filters NONE Steam 1 RUN: 344e495e-b362-4b5f-b9c1-8274f8ca9bc2